fUST/lending_fUST_20240726
["ID","MTS","AMOUNT","RATE_DAILY","PERIOD"]
[333249638,1721979049254,-500.0,0.0001452,2]
[333249639,1721979049265,-500.0,0.0001452,2]
[333249640,1721979049275,-2.68913455,0.0001452,2]
[333249641,1721979049414,-200.0,0.00013425,2]
[333249642,1721979049425,-351.81086545,0.0001452,2]
[333249643,1721979049436,-500.0,0.0001452,2]
[333249644,1721979049447,-162.1,0.0001452,2]
[333249645,1721979049458,-500.0,0.0001452,2]
[333249646,1721979049470,-204.8,0.0001452,2]
[333249647,1721979049481,-500.0,0.0001452,2]
[333249648,1721979049493,-243.3,0.0001452,2]
[333249649,1721979049504,-387.6,0.0001452,2]
[333249650,1721979049514,-392.3,0.0001452,2]
[333249651,1721979049526,-326.88,0.0001452,2]
[333249652,1721979049537,-500.0,0.0001452,2]
[333249653,1721979049548,-417.78,0.0001452,2]
[333249654,1721979049558,-181.42,0.0001452,2]
[333249655,1721979049569,-500.0,0.0001452,2]
[333249656,1721979049581,-150.34,0.0001452,2]
[333249657,1721979049591,-500.0,0.0001452,2]
[333249658,1721979049602,-617.38,0.0001452,2]
[333249659,1721979049612,-77.28913454,0.00014531,2]
[333249662,1721979151821,156.69579514,9.999e-05,2]
[333249663,1721979188484,544.21012066,9.999e-05,2]
[333249664,1721979191956,247.8455655,9.999e-05,2]
[333249665,1721979195357,528.63357653,9.999e-05,2]
[333249666,1721979213283,156.764162,9.999e-05,2]
[333249667,1721979217367,414.11168648,9.999e-05,2]
[333249668,1721979219338,154.83875651,9.999e-05,2]
[333249669,1721979222111,1055.10904973,9.999e-05,2]
[333249670,1721979237764,160.25326411,9.999e-05,2]
[333249671,1721979241714,526.43265985,9.999e-05,2]
[333249672,1721979249815,240.84793359,9.999e-05,2]
[333249673,1721979249979,404.44446743,9.999e-05,2]
[333249674,1721979265512,568.86557419,9.999e-05,2]
[333249675,1721979274939,163.25883785,9.999e-05,2]
[333249676,1721979281738,601.16401781,9.999e-05,2]
[333249677,1721979292277,188.02900327,9.999e-05,2]
[333249678,1721979293799,155.03852169,9.999e-05,2]
[333249679,1721979294006,287.55543098,0.0001,2]
[333249680,1721979297167,403.92022491,9.999e-05,2]
[333249681,1721979299566,209.97996082,9.999e-05,2]
[333249682,1721979300595,282.05564926,0.0001,2]
[333249683,1721979304090,162.62484083,9.999e-05,2]
[333249684,1721979306561,309.56367034,9.999e-05,2]
[333249685,1721979309497,1000.0,0.00024,60]
[333249686,1721979319016,155.04362355,9.999e-05,2]
[333249687,1721979326947,156.15334627,9.999e-05,2]
[333249688,1721979354004,404.89599968,9.999e-05,2]
[333249689,1721979399973,287.82211119,0.0001,2]
[333249693,1721979691883,4670.59215011,0.00024,60]
[333249694,1721980059792,180.57915164,9.999e-05,2]
[333249728,1721980232075,-166.666666,0.00011908,2]
[333249729,1721980232086,-300.0,0.00012036,2]
[333249730,1721980232097,-6230.31397237,0.00012037,2]
[333249731,1721980232125,-4469.77424143,0.00012037,2]
[333249732,1721980232136,-166.666666,0.00012233,2]
[333249733,1721980232146,-157.463096,0.00012553,2]
[333249734,1721980232156,-166.666666,0.00012557,2]
[333249735,1721980232167,-157.463096,0.00012646,2]
[333249736,1721980232178,-157.463096,0.0001274,2]
[333249737,1721980232191,-157.463096,0.00012833,2]
[333249738,1721980232202,-166.666666,0.00012882,2]
[333249739,1721980232213,-157.463096,0.00012927,2]
[333249740,1721980232224,-44.89128057,0.00013,13]
[333249851,1721980238033,-955.10871943,0.00013,13]
[333249853,1721980238044,-157.463096,0.0001302,2]
[333249855,1721980238055,-157.463096,0.00013114,2]
[333249857,1721980238065,-166.666666,0.00013207,2]
[333249859,1721980238076,-157.463096,0.00013207,2]
[333249861,1721980238087,-420.0,0.0001324,2]
[333249864,1721980238096,-200.0,0.00013425,2]
[333249866,1721980238109,-166.666666,0.00013531,2]
[333249868,1721980238121,-1572.3174019,0.00013598,2]
[333249899,1721980240171,-3076.39129871,0.00013598,2]
[333249900,1721980240181,-406.88,0.00013698,2]
[333249901,1721980240191,-500.0,0.00013698,2]
[333249902,1721980240202,-500.0,0.00013698,2]
[333249903,1721980240211,-500.0,0.00013698,2]
[333249904,1721980240220,-387.16,0.00013698,2]
[333249905,1721980240230,-500.0,0.00013698,2]
[333249906,1721980240240,-500.0,0.00013698,2]
[333249907,1721980240249,-500.0,0.00013698,2]
[333249908,1721980240258,-500.0,0.00013698,2]
[333249909,1721980240267,-286.52,0.00013698,2]
[333249910,1721980240277,-500.0,0.00013698,2]
[333249911,1721980240287,-192.26,0.00013698,2]
[333249912,1721980240297,-500.0,0.00013698,2]
[333249913,1721980240307,-468.08,0.00013698,2]
[333249914,1721980240317,-500.0,0.00013698,2]
[333249915,1721980240327,-646.76,0.00013698,2]
[333249916,1721980240337,-207.22,0.00013698,2]
[333249917,1721980240347,-560.6,0.00013698,2]
[333249918,1721980240357,-500.0,0.00013698,2]
[333249919,1721980240368,-500.0,0.00013698,2]
[333249920,1721980240378,-500.0,0.00013698,2]
[333249921,1721980240388,-404.4,0.00013698,2]
[333249922,1721980240397,-500.0,0.00013698,2]
[333249923,1721980240407,-500.0,0.00013698,2]
[333249924,1721980240416,-500.0,0.00013698,2]
[333249925,1721980240426,-500.0,0.00013698,2]
[333249926,1721980240436,-500.0,0.00013698,2]
[333249927,1721980240446,-500.0,0.00013698,2]
[333249928,1721980240456,-500.0,0.00013698,2]
[333249929,1721980240465,-500.0,0.00013698,2]
[333249930,1721980240475,-504.17779074,0.00013698,2]
[333249931,1721980240484,-507.41780141,0.00013698,2]
[333249932,1721980240494,-500.0,0.00013698,2]
[333249933,1721980240503,-500.0,0.00013698,2]
[333249934,1721980240514,-500.0,0.00013698,2]
[333249935,1721980240524,-500.0,0.00013698,2]
[333249936,1721980240533,-192.62994465,0.00013698,2]
[333249937,1721980240542,-500.0,0.00013698,2]
[333249938,1721980240552,-500.0,0.00013698,2]
[333249939,1721980240562,-500.0,0.00013698,2]
[333249940,1721980240572,-500.0,0.00013698,2]
[333249941,1721980240581,-508.02940413,0.00013698,2]
[333249942,1721980240591,-500.0,0.00013698,2]
[333249943,1721980240600,-500.0,0.00013698,2]
[333249944,1721980240609,-450.04,0.00013698,2]
[333249945,1721980240619,-649.6,0.00013698,2]
[333249946,1721980240628,-500.0,0.00013698,2]
[333249947,1721980240638,-500.0,0.00013698,2]
[333249948,1721980240648,-500.0,0.00013698,2]
[333249949,1721980240658,-500.0,0.00013698,2]
[333249950,1721980240668,-500.0,0.00013698,2]
[333249951,1721980240678,-500.0,0.00013698,2]
[333249952,1721980240687,-500.0,0.00013698,2]
[333249953,1721980240697,-502.68913455,0.00013698,2]
[333249954,1721980240705,-453.14,0.00013698,2]
[333249955,1721980240715,-500.0,0.00013698,2]
[333249956,1721980240729,-332.42,0.00013698,2]
[333249957,1721980240739,-500.0,0.00013698,2]
[333249958,1721980240749,-573.04,0.00013698,2]
[333249959,1721980240759,-500.0,0.00013698,2]
[333249960,1721980240769,-500.0,0.00013698,2]
[333249961,1721980240778,-505.71279425,0.00013698,2]
[333249962,1721980240788,-349.34,0.00013698,2]
[333249963,1721980240798,-349.8,0.00013698,2]
[333249964,1721980240807,-500.0,0.00013698,2]
[333249965,1721980240818,-520.09,0.00013698,2]
[333249966,1721980240828,-500.0,0.00013698,2]
[333249967,1721980240838,-500.0,0.00013698,2]
[333249968,1721980240848,-500.0,0.00013698,2]
[333249969,1721980240858,-500.0,0.00013698,2]
[333249970,1721980240867,-582.38,0.00013698,2]
[333249971,1721980240877,-500.0,0.00013698,2]
[333249972,1721980240887,-500.0,0.00013698,2]
[333249973,1721980240897,-500.0,0.00013698,2]
[333249974,1721980240907,-500.0,0.00013698,2]
[333249975,1721980240917,-500.0,0.00013698,2]
[333249976,1721980240927,-500.0,0.00013698,2]
[333249977,1721980240937,-354.6,0.00013698,2]
[333249978,1721980240946,-500.0,0.00013698,2]
[333249979,1721980240957,-500.0,0.00013698,2]
[333249980,1721980240967,-614.42,0.00013698,2]
[333249981,1721980240977,-500.0,0.00013698,2]
[333249982,1721980240987,-321.9,0.00013698,2]
[333249983,1721980240997,-500.0,0.00013698,2]
[333249984,1721980241007,-643.66,0.00013698,2]
[333249985,1721980241017,-500.0,0.00013698,2]
[333249986,1721980241030,-500.0,0.00013698,2]
[333249987,1721980241039,-500.0,0.00013698,2]
[333249988,1721980241049,-500.0,0.00013698,2]
[333249989,1721980241058,-500.0,0.00013698,2]
[333249990,1721980241068,-500.0,0.00013698,2]
[333249991,1721980241078,-391.6,0.00013698,2]
[333249992,1721980241088,-544.0,0.00013698,2]
[333249993,1721980241100,-339.16,0.00013698,2]
[333249994,1721980241110,-500.0,0.00013698,2]
[333249995,1721980241120,-500.0,0.00013698,2]
[333249996,1721980241130,-500.0,0.00013698,2]
[333249997,1721980241140,-500.0,0.00013698,2]
[333249998,1721980241150,-500.0,0.00013698,2]
[333249999,1721980241159,-200.96,0.00013698,2]
[333250000,1721980241169,-500.0,0.00013698,2]
[333250001,1721980241178,-500.0,0.00013698,2]
[333250002,1721980241189,-599.96,0.00013698,2]
[333250003,1721980241199,-500.0,0.00013698,2]
[333250004,1721980241208,-371.4,0.00013698,2]
[333250005,1721980241217,-500.0,0.00013698,2]
[333250006,1721980241227,-377.325,0.00013698,2]
[333250007,1721980241236,-500.0,0.00013698,2]
[333250008,1721980241246,-500.0,0.00013698,2]
[333250009,1721980241256,-500.0,0.00013698,2]
[333250010,1721980241265,-3000.0,0.00013699,2]
[333250011,1721980241275,-265.4839953,0.00013699,2]
[333250012,1721980241285,-150.0,0.0001391,2]
[333250013,1721980241294,-505.0,0.0001391,2]
[333250014,1721980241304,-1409.0,0.0001391,2]
[333250015,1721980241314,-500.0,0.00013961,2]
[333250016,1721980241323,-500.0,0.00013961,2]
[333250017,1721980241333,-500.0,0.00013971,2]
[333250018,1721980241343,-500.0,0.00013972,2]
[333250019,1721980241353,-500.0,0.00013972,2]
[333250020,1721980241362,-500.0,0.00013972,2]
[333250021,1721980241372,-500.0,0.00013972,2]
[333250022,1721980241383,-500.0,0.00013972,2]
[333250023,1721980241393,-500.0,0.00013972,2]
[333250024,1721980241402,-376.82419922,0.00013972,2]
[333250046,1721980243044,-227.79945734,0.00013698,2]
[333250047,1721980243054,-266.83580078,0.00013972,2]
[333250048,1721980243065,-460.76373344,0.00013972,2]
[333250055,1721980246250,-39.23626656,0.00013972,2]
[333250056,1721980246262,-493.05,0.00013972,2]
[333250057,1721980246274,-500.0,0.00013972,2]
[333250058,1721980246284,-574.2,0.00013972,2]
[333250059,1721980246294,-500.0,0.00013972,2]
[333250060,1721980246304,-171.1,0.00013972,2]
[333250061,1721980246314,-500.0,0.00013972,2]
[333250062,1721980246324,-500.0,0.00013972,2]
[333250063,1721980246335,-500.0,0.00013972,2]
[333250064,1721980246346,-178.46,0.00013972,2]
[333250065,1721980246355,-573.38,0.00013972,2]
[333250066,1721980246366,-500.0,0.00013989,2]
[333250067,1721980246376,-194.10518,0.00013989,2]
[333250068,1721980246386,-1000.0,0.00014,14]
[333250069,1721980246396,-296.46855338,0.00014246,2]
[333250180,1721981438226,-166.666666,0.00012336,2]
[333250182,1721981438237,-166.666666,0.00012673,2]
[333250184,1721981438247,-166.666666,0.00013009,2]
[333250186,1721981438257,-166.666666,0.00013345,2]
[333250187,1721981438267,-200.0,0.00013425,2]
[333250190,1721981438277,-4452.16902532,0.00013598,2]
[333250192,1721981438287,-166.666666,0.00013682,2]
[333250194,1721981438298,-2022.11930162,0.00013697,8]
[333250196,1721981438309,-167.0,0.00013697,2]
[333250199,1721981438322,-272.0,0.00013698,2]
[333250201,1721981438332,-500.0,0.00013698,2]
[333250203,1721981438345,-498.63,0.00013698,2]
[333250205,1721981438356,-500.0,0.00013698,2]
[333250207,1721981438367,-500.0,0.00013698,2]
[333250210,1721981438379,-500.0,0.00013698,2]
[333250213,1721981438390,-500.0,0.00013698,2]
[333250217,1721981438402,-500.0,0.00013698,2]
[333250219,1721981438412,-500.0,0.00013698,2]
[333250221,1721981438422,-500.0,0.00013698,2]
[333250223,1721981438432,-349.34,0.00013698,2]
[333250225,1721981438445,-500.0,0.00013698,2]
[333250227,1721981438455,-500.0,0.00013698,2]
[333250229,1721981438464,-500.0,0.00013698,2]
[333250231,1721981438474,-500.0,0.00013698,2]
[333250233,1721981438486,-500.0,0.00013698,2]
[333250234,1721981438497,-500.0,0.00013698,2]
[333250237,1721981438509,-500.0,0.00013698,2]
[333250238,1721981438523,-505.60113204,0.00013698,2]
[333250239,1721981438535,-500.0,0.00013698,2]
[333250240,1721981438546,-500.0,0.00013698,2]
[333250241,1721981438557,-500.0,0.00013698,2]
[333250242,1721981438567,-633.13,0.00013698,2]
[333250243,1721981438578,-500.0,0.00013698,2]
[333250244,1721981438589,-609.89,0.00013698,2]
[333250245,1721981438600,-500.0,0.00013698,2]
[333250246,1721981438610,-500.0,0.00013698,2]
[333250247,1721981438619,-500.0,0.00013698,2]
[333250248,1721981438629,-379.72,0.00013698,2]
[333250249,1721981438638,-500.0,0.00013698,2]
[333250250,1721981438647,-500.0,0.00013698,2]
[333250251,1721981438658,-500.0,0.00013698,2]
[333250252,1721981438670,-500.0,0.00013698,2]
[333250253,1721981438682,-500.0,0.00013698,2]
[333250254,1721981438694,-500.0,0.00013698,2]
[333250255,1721981438705,-500.0,0.00013698,2]
[333250256,1721981438717,-616.32926765,0.00013698,2]
[333250257,1721981438728,-500.0,0.00013698,2]
[333250258,1721981438739,-500.0,0.00013698,2]
[333250259,1721981438750,-500.0,0.00013698,2]
[333250260,1721981438759,-500.0,0.00013698,2]
[333250261,1721981438770,-500.0,0.00013698,2]
[333250262,1721981438780,-350.62456339,0.00013698,2]
[333250263,1721981438789,-538.39,0.00013698,2]
[333250264,1721981438799,-500.0,0.00013698,2]
[333250265,1721981438808,-500.0,0.00013698,2]
[333250266,1721981438818,-500.0,0.00013698,2]
[333250267,1721981438827,-502.36529503,0.00013698,2]
[333250268,1721981438837,-500.0,0.00013698,2]
[333250269,1721981438846,-500.0,0.00013698,2]
[333250270,1721981438855,-500.0,0.00013698,2]
[333250271,1721981438865,-500.0,0.00013698,2]
[333250272,1721981438875,-500.0,0.00013698,2]
[333250273,1721981438885,-500.0,0.00013698,2]
[333250274,1721981438894,-500.0,0.00013698,2]
[333250275,1721981438904,-500.0,0.00013698,2]
[333250276,1721981438913,-500.0,0.00013698,2]
[333250277,1721981438923,-500.0,0.00013698,2]
[333250278,1721981438934,-500.0,0.00013698,2]
[333250279,1721981438946,-500.0,0.00013698,2]
[333250280,1721981438956,-500.0,0.00013698,2]
[333250281,1721981438967,-500.0,0.00013698,2]
[333250282,1721981438978,-500.0,0.00013698,2]
[333250283,1721981438988,-186.77593733,0.00013698,2]
[333250284,1721981438999,-341.07035069,0.00013698,2]
[333250285,1721981439009,-510.5,0.00013698,2]
[333250286,1721981439018,-500.0,0.00013698,2]
[333250287,1721981439027,-500.0,0.00013698,2]
[333250288,1721981439037,-509.84548094,0.00013698,2]
[333250289,1721981439047,-500.0,0.00013698,2]
[333250290,1721981439057,-500.0,0.00013698,2]
[333250291,1721981439066,-500.0,0.00013698,2]
[333250292,1721981439077,-500.0,0.00013698,2]
[333250293,1721981439087,-500.0,0.00013698,2]
[333250294,1721981439097,-350.31172901,0.00013698,2]
[333250295,1721981439107,-500.0,0.00013698,2]
[333250296,1721981439311,-511.62744072,0.00013698,2]
[333250297,1721981439322,-500.0,0.00013698,2]
[333250298,1721981439333,-500.0,0.00013698,2]
[333250299,1721981439345,-500.0,0.00013698,2]
[333250300,1721981439356,-500.0,0.00013698,2]
[333250301,1721981439366,-500.0,0.00013698,2]
[333250302,1721981439375,-502.34,0.00013698,2]
[333250303,1721981439385,-500.0,0.00013698,2]
[333250304,1721981439394,-500.0,0.00013698,2]
[333250305,1721981439403,-500.0,0.00013698,2]
[333250306,1721981439413,-500.0,0.00013698,2]
[333250307,1721981439422,-500.0,0.00013698,2]
[333250308,1721981439434,-500.0,0.00013698,2]
[333250309,1721981439449,-548.24,0.00013698,2]
[333250310,1721981439460,-500.0,0.00013698,2]
[333250311,1721981439473,-500.0,0.00013698,2]
[333250312,1721981439484,-500.0,0.00013698,2]
[333250313,1721981439495,-500.0,0.00013698,2]
[333250314,1721981439508,-500.0,0.00013698,2]
[333250315,1721981439521,-502.38203526,0.00013698,2]
[333250316,1721981439531,-500.0,0.00013698,2]
[333250317,1721981439540,-500.0,0.00013698,2]
[333250318,1721981439549,-500.0,0.00013698,2]
[333250319,1721981439559,-500.0,0.00013698,2]
[333250320,1721981439569,-500.0,0.00013698,2]
[333250321,1721981439578,-502.03619974,0.00013698,2]
[333250322,1721981439589,-500.0,0.00013698,2]
[333250323,1721981439600,-500.0,0.00013698,2]
[333250324,1721981439612,-500.0,0.00013698,2]
[333250325,1721981439622,-500.0,0.00013698,2]
[333250326,1721981439632,-500.0,0.00013698,2]
[333250327,1721981439642,-500.0,0.00013698,2]
[333250328,1721981439652,-500.0,0.00013698,2]
[333250329,1721981439663,-500.0,0.00013698,2]
[333250330,1721981439673,-500.0,0.00013698,2]
[333250332,1721981439682,-559.32,0.00013698,2]
[333250333,1721981439693,-500.0,0.00013698,2]
[333250334,1721981439703,-500.0,0.00013698,2]
[333250335,1721981439712,-507.50062194,0.00013698,2]
[333250336,1721981439722,-500.0,0.00013698,2]
[333250337,1721981439732,-500.0,0.00013698,2]
[333250338,1721981439742,-500.0,0.00013698,2]
[333250339,1721981439752,-500.0,0.00013698,2]
[333250340,1721981439763,-500.0,0.00013698,2]
[333250341,1721981439774,-500.0,0.00013698,2]
[333250342,1721981439785,-500.0,0.00013698,2]
[333250343,1721981439795,-500.0,0.00013698,2]
[333250344,1721981439805,-500.0,0.00013698,2]
[333250345,1721981439815,-500.0,0.00013698,2]
[333250346,1721981439826,-500.0,0.00013698,2]
[333250347,1721981439837,-500.0,0.00013698,2]
[333250348,1721981439848,-500.0,0.00013698,2]
[333250349,1721981439859,-500.0,0.00013698,2]
[333250350,1721981439870,-500.0,0.00013698,2]
[333250351,1721981439881,-500.0,0.00013698,2]
[333250352,1721981439891,-500.0,0.00013698,2]
[333250353,1721981439900,-500.0,0.00013698,2]
[333250354,1721981439910,-500.0,0.00013698,2]
[333250355,1721981439921,-500.0,0.00013698,2]
[333250356,1721981439932,-500.0,0.00013698,2]
[333250357,1721981439942,-500.0,0.00013698,2]
[333250358,1721981439951,-500.0,0.00013698,2]
[333250359,1721981439961,-500.0,0.00013698,2]
[333250360,1721981439970,-578.68,0.00013698,2]
[333250361,1721981439981,-500.0,0.00013698,2]
[333250362,1721981439991,-500.0,0.00013698,2]
[333250363,1721981440001,-503.77968087,0.00013698,2]
[333250364,1721981440012,-500.0,0.00013698,2]
[333250365,1721981440023,-500.0,0.00013698,2]
[333250366,1721981440033,-500.0,0.00013698,2]
[333250367,1721981440043,-500.0,0.00013698,2]
[333250369,1721981440053,-500.0,0.00013698,2]
[333250371,1721981440063,-500.0,0.00013698,2]
[333250373,1721981440074,-500.0,0.00013698,2]
[333250374,1721981440084,-500.0,0.00013698,2]
[333250375,1721981440093,-500.0,0.00013698,2]
[333250377,1721981440103,-500.0,0.00013698,2]
[333250379,1721981440112,-500.0,0.00013698,2]
[333250380,1721981440123,-500.0,0.00013698,2]
[333250381,1721981440133,-500.0,0.00013698,2]
[333250382,1721981440143,-500.0,0.00013698,2]
[333250384,1721981440154,-500.0,0.00013698,2]
[333250385,1721981440164,-500.0,0.00013698,2]
[333250387,1721981440174,-500.0,0.00013698,2]
[333250388,1721981440184,-500.0,0.00013698,2]
[333250389,1721981440194,-500.0,0.00013698,2]
[333250390,1721981440205,-500.0,0.00013698,2]
[333250392,1721981440215,-3000.0,0.00013699,2]
[333250393,1721981440226,-265.4839953,0.00013699,2]
[333250394,1721981440235,-293.9641968,0.00013699,2]
[333250395,1721981440245,-500.0,0.00013803,2]
[333250396,1721981440255,-569.83282009,0.00013803,2]
[333250398,1721981440265,-569.83282009,0.00013803,2]
[333250400,1721981440274,-569.83282009,0.00013803,2]
[333250401,1721981440284,-479.36685561,0.00013803,2]
[333250402,1721981440294,-189.30999167,0.00013803,2]
[333250403,1721981440304,-569.83282009,0.00013803,2]
[333250404,1721981440315,-569.83282009,0.00013803,2]
[333250406,1721981440325,-569.83282009,0.00013803,2]
[333250407,1721981440334,-569.83282009,0.00013803,2]
[333250408,1721981440344,-569.83282009,0.00013803,2]
[333250409,1721981440354,-569.83282009,0.00013803,2]
[333250410,1721981440364,-569.83282009,0.00013803,2]
[333250412,1721981440376,-569.83282009,0.00013803,2]
[333250414,1721981440387,-569.83282009,0.00013803,2]
[333250416,1721981440399,-569.83282009,0.00013803,2]
[333250418,1721981440410,-569.83282009,0.00013803,2]
[333250419,1721981440422,-569.83282009,0.00013803,2]
[333250421,1721981440432,-569.83282009,0.00013803,2]
[333250423,1721981440448,-569.83282009,0.00013803,2]
[333250425,1721981440459,-569.83282009,0.00013803,2]
[333250426,1721981440470,-112961.480442,0.00013804,2]
[333250427,1721981440483,-587.7262463,0.00013808,2]
[333250429,1721981440494,-306.0,0.00013808,2]
[333250430,1721981440505,-162.0,0.00013825,2]
[333250431,1721981440518,-162.0,0.00013825,2]
[333250432,1721981440530,-162.0,0.00013825,2]
[333250433,1721981440541,-162.0,0.00013825,2]
[333250434,1721981440550,-162.0,0.00013825,2]
[333250435,1721981440561,-162.0,0.00013825,2]
[333250436,1721981440570,-162.0,0.00013825,2]
[333250437,1721981440582,-162.0,0.00013825,2]
[333250438,1721981440593,-162.0,0.00013825,2]
[333250439,1721981440604,-162.0,0.00013825,2]
[333250440,1721981440614,-162.0,0.00013825,2]
[333250441,1721981440623,-162.0,0.00013825,2]
[333250442,1721981440633,-153.0,0.00013825,2]
[333250443,1721981440643,-169.0,0.00013825,2]
[333250444,1721981440652,-169.0,0.00013825,2]
[333250445,1721981440662,-169.0,0.00013825,2]
[333250446,1721981440672,-169.0,0.00013825,2]
[333250447,1721981440682,-169.0,0.00013825,2]
[333250448,1721981440691,-169.0,0.00013825,2]
[333250449,1721981440701,-169.0,0.00013825,2]
[333250450,1721981440710,-169.0,0.00013825,2]
[333250451,1721981440720,-169.0,0.00013825,2]
[333250452,1721981440731,-169.0,0.00013825,2]
[333250453,1721981440741,-169.0,0.00013825,2]
[333250454,1721981440752,-169.0,0.00013825,2]
[333250455,1721981440762,-169.0,0.00013825,2]
[333250456,1721981440773,-169.0,0.00013825,2]
[333250457,1721981440784,-169.0,0.00013825,2]
[333250458,1721981440795,-169.0,0.00013825,2]
[333250459,1721981440806,-169.0,0.00013825,2]
[333250460,1721981440817,-153.0,0.00013825,2]
[333250461,1721981440828,-153.0,0.00013825,2]
[333250462,1721981440840,-175.0,0.00013825,2]
[333250463,1721981440852,-175.0,0.00013825,2]
[333250464,1721981440862,-175.0,0.00013825,2]
[333250465,1721981440873,-175.0,0.00013825,2]
[333250466,1721981440884,-175.0,0.00013825,2]
[333250467,1721981440893,-175.0,0.00013825,2]
[333250468,1721981440903,-150.0,0.0001391,2]
[333250469,1721981440913,-505.0,0.0001391,2]
[333250470,1721981440922,-1409.0,0.0001391,2]
[333250471,1721981440933,-112961.480442,0.00013962,2]
[333250472,1721981440943,-524.7,0.00013972,2]
[333250473,1721981440952,-500.0,0.00013972,2]
[333250474,1721981440962,-500.0,0.00013972,2]
[333250475,1721981440972,-500.0,0.00013972,2]
[333250476,1721981440981,-177.8,0.00013972,2]
[333250477,1721981440990,-500.0,0.00013972,2]
[333250478,1721981441000,-359.56,0.00013972,2]
[333250479,1721981441010,-500.0,0.00013972,2]
[333250480,1721981441021,-500.0,0.00013972,2]
[333250481,1721981441031,-522.41,0.00013972,2]
[333250482,1721981441040,-500.0,0.00013972,2]
[333250483,1721981441050,-500.0,0.00013972,2]
[333250484,1721981441059,-500.0,0.00013972,2]
[333250485,1721981441069,-500.0,0.00013972,2]
[333250486,1721981441079,-500.0,0.00013972,2]
[333250487,1721981441089,-500.0,0.00013972,2]
[333250488,1721981441099,-507.41780141,0.00013972,2]
[333250489,1721981441109,-504.17779074,0.00013972,2]
[333250490,1721981441120,-500.0,0.00013972,2]
[333250491,1721981441132,-500.0,0.00013972,2]
[333250492,1721981441144,-500.0,0.00013972,2]
[333250493,1721981441157,-192.62994465,0.00013972,2]
[333250494,1721981441168,-500.0,0.00013972,2]
[333250495,1721981441181,-500.0,0.00013972,2]
[333250496,1721981441192,-500.0,0.00013972,2]
[333250497,1721981441204,-500.0,0.00013972,2]
[333250498,1721981441214,-500.0,0.00013972,2]
[333250499,1721981441225,-500.0,0.00013972,2]
[333250500,1721981441234,-508.02940413,0.00013972,2]
[333250501,1721981441243,-500.0,0.00013972,2]
[333250502,1721981441253,-500.0,0.00013972,2]
[333250503,1721981441265,-500.0,0.00013972,2]
[333250504,1721981441274,-507.36,0.00013972,2]
[333250505,1721981441284,-500.0,0.00013972,2]
[333250506,1721981441295,-500.0,0.00013972,2]
[333250507,1721981441306,-500.0,0.00013972,2]
[333250508,1721981441316,-500.0,0.00013972,2]
[333250509,1721981441326,-522.34,0.00013972,2]
[333250510,1721981441336,-500.0,0.00013972,2]
[333250511,1721981441347,-500.0,0.00013972,2]
[333250512,1721981441358,-500.0,0.00013972,2]